bitfinex/quotes_ETHUSD_20260102
["timestamp","ask_amount","ask_price","bid_price","bid_amount"]
[1767370975622,9.28968012,3106.2,3104.9,9.38915821]
[1767370975851,9.26557032,3106.2,3104.9,9.38915821]
[1767370976225,9.26557032,3106.2,3105.1,9.1824778]
[1767370976445,2.09269116,3106.1,3105.2,9.1824778]
[1767370976961,2.09269116,3106.1,3105.3,9.1824778]
[1767370977258,0.844,3106.1,3105.3,9.1824778]
[1767370977445,10.63614292,3106.1,3105.3,9.1824778]
[1767370977631,10.63614292,3106.1,3104.9,9.1834778]
[1767370978248,4.06357501,3106.0,3104.9,9.1834778]
[1767370978646,1.61132488,3106.0,3104.9,9.1834778]
[1767370978962,1.61132488,3106.0,3104.9,10.42390639]
[1767370979122,0.844,3105.9,3104.9,10.42390639]
[1767370979322,0.844,3105.9,3105.0,9.52139433]
[1767370979751,0.002,3106.2,3104.9,4.46213531]
[1767370979752,0.844,3106.1,3105.2,9.52139433]
[1767370980077,0.846,3106.2,3105.2,9.52139433]
[1767370980258,0.0241098,3106.1,3105.2,9.52139433]
[1767370980445,7.28475675,3106.2,3105.2,9.52139433]
[1767370980446,0.73088665,3106.0,3105.2,9.52139433]
[1767370980645,0.846,3106.2,3105.3,0.032203]
[1767370980954,8.62287353,3106.2,3105.2,9.52139433]
[1767370981352,9.13680523,3106.1,3105.2,9.52139433]
[1767370981535,0.002,3106.2,3105.4,9.52139433]
[1767370981734,0.002,3106.2,3105.6,9.52139433]
[1767370981983,0.846,3106.2,3105.6,9.52139433]
[1767370982280,0.77297793,3106.2,3105.6,10.47353376]
[1767370982647,0.002,3106.3,3105.6,10.47353376]
[1767370983695,9.21557981,3107.3,3106.2,9.52139433]
[1767370983846,2.10535257,3107.5,3106.2,9.52139433]
[1767370984174,9.14447754,3107.4,3106.2,12.74074181]
[1767370984473,9.14447754,3107.4,3106.2,3.21934748]
[1767370984773,0.002,3107.5,3105.9,3.21963877]
[1767370984774,0.91441038,3107.2,3105.9,3.21963877]
[1767370984964,0.91441038,3107.2,3105.9,0.03219678]
[1767370985163,3.22004631,3107.5,3106.2,9.52139433]
[1767370985364,0.002,3107.5,3106.3,9.52139433]
[1767370985668,0.002,3107.5,3106.5,9.52139433]
[1767370986170,4.06150321,3108.0,3106.5,12.74041898]
[1767370986347,7.27900642,3108.0,3106.6,9.52139433]
[1767370986549,4.06150321,3108.0,3106.6,9.52139433]
[1767370986749,0.72789089,3107.9,3106.6,10.95503846]
[1767370987373,9.0414973,3107.8,3106.6,9.52139433]
[1767370987552,0.18278081,3107.6,3106.1,9.52139433]
[1767370987755,8.95291014,3107.4,3105.7,9.52139433]
[1767370987949,0.8681098,3107.5,3105.7,9.52139433]
[1767370987950,0.2704821,3107.2,3105.7,9.52139433]
[1767370988142,12.08466519,3107.0,3105.8,0.03219782]
[1767370988379,0.844,3106.9,3105.9,9.52139433]
[1767370988563,0.844,3107.0,3106.1,9.52139433]
[1767370989154,9.8874379,3107.0,3105.7,9.52139433]
[1767370989361,0.18085962,3106.8,3105.7,9.52139433]
[1767370989555,0.09133863,3107.1,3105.7,9.52139433]
[1767370989768,0.844,3106.9,3105.7,9.52139433]
[1767370990163,0.844,3106.9,3105.8,9.52139433]
[1767370990361,16.32488896,3106.9,3105.8,9.52139433]
[1767370990574,1.6324889,3106.8,3105.8,9.52139433]
[1767370990778,9.8874379,3106.9,3105.9,9.52139433]
[1767370991010,0.18085962,3106.8,3105.5,9.52139433]
[1767370991655,8.97892192,3106.7,3105.5,9.52139433]
[1767370991880,8.95481212,3106.7,3105.5,9.52139433]
[1767370992173,0.0241098,3106.6,3105.5,9.52139433]
[1767370992362,4.38554814,3106.5,3105.5,9.52139433]
[1767370992879,6.70671276,3106.5,3105.5,9.52139433]
[1767370993473,0.26859914,3106.5,3105.5,9.52139433]
[1767370993778,0.844,3106.4,3105.5,9.52139433]
[1767370994158,12.35250139,3107.0,3105.6,9.55359422]
[1767370994476,7.37262337,3106.9,3105.6,9.52139433]
[1767370994652,9.0434379,3106.8,3105.6,9.52139433]
[1767370994846,0.18085962,3106.6,3105.1,9.52139433]
[1767370995584,0.18085962,3106.6,3105.2,9.52139433]
[1767370995774,0.18085962,3106.6,3105.4,9.52139433]
[1767370995969,0.844,3106.5,3105.4,9.52139433]
[1767370996280,8.86794999,3106.3,3105.4,9.52139433]
[1767370996448,8.86794999,3106.3,3105.0,9.52139433]
[1767370997584,0.35558162,3106.1,3105.0,9.52139433]
[1767370998368,0.43985406,3105.9,3104.9,0.001]
[1767370998570,8.69840659,3105.7,3104.6,0.001]
[1767370998772,0.52243959,3105.5,3104.6,0.001]
[1767370998962,0.844,3105.4,3104.6,0.001]
[1767370999581,9.46064692,3105.4,3104.3,0.001]
[1767370999784,0.60239166,3105.2,3104.3,0.001]
[1767371000153,5.44232447,3105.7,3104.3,0.001]
[1767371000154,0.844,3105.1,3104.3,9.52239433]
[1767371000368,4.06460378,3105.1,3104.3,9.52239433]
[1767371000572,4.06460378,3105.1,3104.3,0.001]
[1767371000573,13.10699318,3105.1,3104.3,0.001]
[1767371000758,0.18084,3105.0,3104.0,9.55361082]
[1767371000973,3.90772306,3105.8,3103.6,0.001]
[1767371000974,0.844,3105.2,3104.3,9.52139433]
[1767371001165,9.13188211,3105.8,3104.5,9.52139433]
[1767371001372,0.844,3105.7,3104.7,9.52139433]
[1767371001882,0.844,3105.7,3104.9,9.52139433]
[1767371002183,0.844,3105.7,3104.4,9.52139433]
[1767371002184,9.88547648,3105.7,3104.4,9.52139433]
[1767371002382,3.21998969,3105.6,3104.6,9.52139433]
[1767371002757,14.57241646,3105.2,3104.1,10.47675541]
[1767371003083,0.844,3105.1,3104.2,9.52139433]
[1767371003253,0.844,3105.0,3104.2,9.52139433]
[1767371003585,6.43997938,3105.6,3104.2,9.52139433]
[1767371003878,6.43997938,3105.6,3104.3,9.52139433]
[1767371003879,9.68547442,3105.5,3104.3,9.52139433]
[1767371004180,0.844,3105.4,3104.5,9.52139433]
[1767371004376,3.22030077,3105.3,3104.5,9.52139433]
[1767371004753,8.95286992,3105.2,3104.0,9.52139433]
[1767371005863,3.22030077,3105.3,3104.0,9.52139433]
[1767371006066,3.22030077,3105.3,3104.2,9.52139433]
[1767371006067,0.844,3105.1,3104.2,9.52139433]
[1767371006579,3.22052381,3105.1,3104.2,9.52139433]
[1767371007198,3.22052381,3105.1,3104.1,9.47249425]
[1767371007362,3.22032282,3105.3,3104.3,9.47149425]
[1767371007559,0.844,3105.2,3104.3,9.47149425]
[1767371007864,12.35215392,3105.4,3104.3,9.47149425]
[1767371007865,0.844,3105.1,3104.3,10.2707398]
[1767371008057,0.844,3105.1,3104.3,9.47149425]
[1767371008263,0.844,3105.1,3104.1,0.001]
[1767371008264,9.88547648,3105.1,3104.1,0.001]
[1767371008477,3.40143231,3105.0,3104.1,0.001]
[1767371009064,8.95286992,3104.9,3103.6,0.001]
[1767371009361,8.86601673,3104.7,3103.6,9.47249425]
[1767371009561,0.35353555,3104.5,3103.6,9.47249425]
[1767371009996,9.13089211,3104.9,3103.7,9.50371385]
[1767371010177,3.22055813,3105.1,3103.8,9.47149425]
[1767371010178,0.844,3104.8,3103.8,9.47149425]
[1767371010489,0.844,3104.8,3104.0,9.47149425]
[1767371010900,0.844,3105.0,3104.0,9.47149425]
[1767371011057,9.04049628,3104.9,3104.0,9.47149425]
[1767371011256,9.04049628,3104.9,3103.6,9.47249425]
[1767371011568,9.04049628,3104.9,3103.7,9.47149425]
[1767371011873,0.18080079,3104.7,3103.7,9.47149425]
[1767371012592,9.63366161,3104.4,3103.4,0.001]
[1767371012768,8.97034643,3104.2,3103.4,0.001]
[1767371013689,9.62702845,3103.9,3103.1,0.001]
[1767371013888,8.97691325,3103.7,3102.9,0.001]
[1767371014458,0.844,3103.6,3102.9,9.47249425]
[1767371014656,4.06607242,3103.6,3102.9,0.001]
[1767371014862,9.63366161,3104.1,3102.9,9.47249425]
[1767371015170,9.81434643,3104.0,3102.9,9.47249425]
[1767371015489,1.62575036,3103.9,3102.9,9.47249425]
[1767371015698,9.6205273,3103.7,3102.5,9.47249425]
[1767371015869,9.6205273,3103.7,3102.2,9.47249425]
[1767371016192,0.09052671,3103.2,3102.1,0.001]
[1767371016362,10.47766161,3103.1,3102.1,0.001]
[1767371016562,9.03966827,3103.0,3102.1,0.001]
[1767371017302,0.844,3103.1,3102.1,10.41984368]
[1767371017510,0.844,3103.1,3102.3,9.47149425]
[1767371018411,0.16,3104.3,3102.1,0.94834943]
[1767371018412,0.844,3103.2,3102.5,9.47149425]
[1767371018776,9.03966827,3103.7,3102.6,9.50372528]
[1767371018979,9.03966827,3103.7,3102.6,9.47149425]
[1767371018980,0.844,3103.4,3102.6,9.47149425]
[1767371019178,0.844,3103.4,3102.6,10.41864367]
[1767371019679,10.47172168,3103.4,3102.1,0.001]
[1767371019877,10.47172168,3103.4,3102.1,12.6960991]
[1767371020080,10.47172168,3103.4,3102.1,9.47249425]
[1767371020277,10.31672168,3103.4,3102.1,9.47249425]
[1767371020580,9.31301995,3103.2,3102.1,9.47249425]
[1767371020780,10.97329718,3103.2,3102.1,9.47249425]
[1767371022383,9.31301995,3103.2,3102.1,9.47249425]
[1767371022889,12.53550518,3103.2,3102.1,9.47249425]
[1767371023087,13.38050518,3103.2,3102.1,9.47249425]
[1767371023479,9.63366161,3103.7,3102.2,9.47149425]
[1767371023684,0.63798749,3105.1,3102.1,3.2246227]
[1767371023685,9.63366161,3104.1,3102.4,9.47149425]
[1767371023894,9.63366161,3104.1,3102.6,9.47149425]
[1767371024110,9.63366161,3104.1,3102.8,9.47149425]
[1767371024689,8.73078827,3104.0,3102.8,12.69438245]
[1767371024901,3.22149773,3104.2,3102.9,9.50372216]
[1767371025095,9.62463288,3103.9,3102.5,9.47149425]
[1767371025283,8.73972672,3103.7,3102.5,9.47149425]
[1767371025689,9.61578382,3103.5,3102.3,1.26961169]
[1767371025885,9.61578382,3103.5,3102.3,10.74110594]
[1767371026218,9.61578382,3103.5,3102.4,10.63010484]
[1767371026600,12.8379875,3103.5,3102.4,10.63010484]
[1767371026806,3.22212797,3103.6,3102.4,10.63010484]
[1767371028697,9.62463288,3103.4,3102.4,1.15861059]
[1767371028895,8.73972672,3103.2,3102.1,0.001]
[1767371030221,9.63366161,3103.6,3102.3,9.47149425]
[1767371030422,7.28903174,3103.7,3102.3,9.47149425]
[1767371030423,8.73078827,3103.4,3102.3,9.47149425]
[1767371030803,10.47866161,3103.7,3102.3,9.47149425]
[1767371030996,18.49189551,3103.7,3102.5,9.47149425]
[1767371031197,8.73078827,3103.6,3102.5,9.47149425]
[1767371031621,8.73278827,3103.6,3102.5,9.47149425]
[1767371032023,8.73278827,3103.6,3102.6,10.31649425]
[1767371032320,0.002,3103.6,3102.6,10.31649425]
[1767371032625,0.002,3103.6,3102.7,10.50314367]
[1767371033327,0.002,3103.6,3102.8,9.47149425]
[1767371034094,0.002,3103.6,3102.9,9.50372216]
[1767371034293,0.002,3103.6,3102.9,9.47149425]
[1767371034495,9.63366161,3104.0,3102.9,9.47149425]
[1767371034702,9.63366161,3104.0,3103.1,9.47149425]
[1767371036226,9.63366161,3104.0,3102.7,11.01814961]
[1767371036227,8.73276827,3103.9,3102.7,11.01814961]
[1767371036608,8.73276827,3103.9,3102.7,11.86314961]
[1767371036924,8.73276827,3103.9,3102.8,9.98650019]
[1767371037140,11.95453519,3103.9,3102.8,9.98650019]
[1767371037302,9.4962178,3103.8,3102.9,1.50861071]
[1767371037636,9.4962178,3104.2,3103.1,9.98650019]
[1767371039031,8.86883765,3104.1,3103.1,9.98650019]
[1767371039846,9.48994399,3103.9,3102.9,11.4951109]
[1767371040297,0.002,3104.5,3103.7,9.98650019]
[1767371040500,0.002,3104.5,3103.9,9.98650019]
[1767371041033,9.48383424,3104.3,3103.5,10.83150019]
[1767371041234,9.48383424,3104.3,3103.1,13.20905637]
[1767371041442,9.48383424,3104.3,3103.2,10.83150019]
[1767371041644,9.48383424,3104.3,3103.3,9.98650019]
[1767371041842,10.75454294,3104.3,3103.3,13.20887492]
[1767371042042,9.48383424,3104.3,3103.4,9.98650019]
[1767371044352,12.70518073,3104.3,3103.4,9.98650019]
[1767371044528,12.70518073,3104.3,3101.8,6.62189801]
[1767371044529,9.47782667,3104.1,3103.0,9.98650019]
[1767371044724,6.44269298,3104.3,3103.0,9.98650019]
[1767371044725,3.22134649,3104.3,3103.0,13.20917171]
[1767371044940,11.8786972,3104.3,3103.1,9.98650019]
[1767371045238,9.48996379,3104.2,3103.3,9.98650019]
[1767371045431,9.48996379,3104.2,3103.0,9.98650019]
[1767371045634,9.48996379,3104.2,3103.0,13.20914916]
[1767371045849,9.48996379,3104.2,3103.1,9.98650019]
[1767371046049,12.71940509,3104.5,3103.2,10.01872499]
[1767371046223,12.71940509,3104.5,3103.4,9.98650019]
[1767371046224,14.0758456,3104.5,3103.4,9.98650019]
[1767371046952,8.87081765,3104.4,3103.4,9.98650019]
[1767371047257,9.49196379,3104.3,3103.4,9.98650019]
[1767371047440,9.49196379,3104.3,3103.2,0.845]
[1767371047640,9.49196379,3104.3,3103.2,10.83150019]
[1767371047849,10.14833026,3104.2,3103.2,10.83150019]
[1767371048425,10.14833026,3104.2,3103.2,9.98650019]
[1767371048639,10.14833026,3104.2,3102.8,10.83150019]
[1767371048833,10.99333026,3104.2,3102.8,10.83150019]
[1767371049631,0.002,3104.3,3103.0,9.98650019]
[1767371049944,3.22333888,3104.3,3103.0,9.98650019]
[1767371050254,0.002,3104.3,3103.2,9.98650019]
[1767371050459,9.48996379,3104.2,3103.4,9.98650019]
[1767371050656,10.47047379,3104.1,3103.3,0.845]
[1767371050858,10.47047379,3104.1,3103.1,9.98650019]
[1767371051058,9.50794404,3104.0,3103.1,9.98650019]
[1767371051357,9.48383424,3104.0,3103.1,9.98650019]
[1767371051562,1.59346467,3104.1,3103.1,9.98650019]
[1767371051861,8.87081765,3104.2,3103.3,9.98650019]
[1767371052065,3.22335953,3104.3,3103.4,10.01872291]
[1767371052261,9.48996379,3104.2,3103.4,9.98650019]
[1767371052439,0.002,3104.3,3103.4,9.98650019]
[1767371052761,0.002,3104.3,3103.5,9.98650019]
[1767371053060,0.002,3104.3,3103.6,11.06965021]
[1767371053437,0.002,3104.5,3103.9,9.98650019]
[1767371053637,8.87479765,3104.5,3103.6,11.06965021]
[1767371053830,8.87479765,3104.5,3103.6,9.98650019]
[1767371054637,0.002,3104.3,3103.6,9.98650019]
[1767371054929,0.002,3104.3,3103.6,11.06965021]
[1767371055663,0.002,3104.5,3103.8,9.98650019]
[1767371055863,9.4962178,3104.8,3104.1,9.98650019]
[1767371056063,0.002,3104.9,3104.1,9.98650019]
[1767371056269,0.002,3104.9,3104.1,11.06965021]
[1767371056858,0.002,3105.3,3104.4,9.98650019]
[1767371057043,0.002,3105.3,3104.4,10.83050019]
[1767371057364,0.002,3105.3,3104.5,10.83050019]
[1767371057564,9.49358739,3105.3,3104.5,10.83050019]
[1767371057747,9.49358739,3105.3,3104.5,9.98650019]
[1767371058069,0.002,3105.3,3104.5,10.98515021]
[1767371059167,0.002,3105.6,3104.8,9.98650019]
[1767371059874,0.002,3105.6,3104.9,9.98650019]
[1767371060249,0.002,3105.7,3105.2,9.98650019]
[1767371060449,0.002,3106.1,3105.2,9.98650019]
[1767371060677,1.03632178,3106.1,3105.2,9.98650019]
[1767371060878,10.07543943,3106.1,3105.2,9.98650019]
[1767371061265,0.002,3105.3,3105.2,9.98650019]
[1767371061466,0.002,3106.1,3105.3,9.98650019]
[1767371062267,9.49364679,3106.1,3105.3,9.98650019]
[1767371062679,9.06775275,3106.0,3105.1,0.844]
[1767371062864,9.04364295,3106.0,3105.0,0.844]
[1767371063064,10.39173105,3105.9,3105.0,0.844]
[1767371063379,9.07218799,3105.8,3104.6,9.98650019]
[1767371063577,9.04807819,3105.8,3104.6,9.98650019]
[1767371063877,9.48277586,3105.6,3104.6,9.98650019]
[1767371064464,12.70281269,3105.6,3104.6,9.98650019]
[1767371064653,10.32270644,3105.5,3104.6,9.98650019]
[1767371066485,9.21134272,3105.3,3104.3,9.7081595]
[1767371066879,9.32114398,3105.1,3104.3,9.7081595]
[1767371067091,9.21244073,3105.0,3104.3,9.7081595]
[1767371067266,9.21244073,3105.0,3104.0,10.15955591]
[1767371067466,9.21244073,3105.0,3104.0,11.1755115]
[1767371068323,9.40144353,3105.2,3104.1,9.31555591]
[1767371068469,3.22019707,3105.4,3104.3,9.31555591]
[1767371068802,15.57333831,3105.4,3104.3,9.31555591]
[1767371069000,9.42286834,3105.3,3104.0,9.31555591]
[1767371069204,6.44039414,3105.4,3104.0,10.15955591]
[1767371069205,9.13461231,3105.1,3104.0,10.15955591]
[1767371069502,9.13461231,3105.1,3104.0,9.31555591]
[1767371069805,9.13461231,3105.1,3104.0,10.15955591]
[1767371070005,9.13461231,3105.1,3104.1,9.31555591]
[1767371070182,9.40144353,3105.4,3104.3,9.31555591]
[1767371070377,9.40144353,3105.4,3104.3,10.25033294]
[1767371070378,13.56178962,3105.4,3104.3,10.25033294]
[1767371070892,10.34158788,3105.4,3104.4,9.34776825]
[1767371071079,9.40144353,3105.4,3104.4,9.31555591]
[1767371071281,9.40144353,3105.4,3104.6,9.31555591]
[1767371071801,3.22154981,3106.1,3104.3,4.15611263]
[1767371071802,9.40144353,3106.0,3104.8,9.31555591]
[1767371072001,9.40144353,3106.0,3105.0,9.31555591]
[1767371072392,9.40144353,3106.0,3105.0,10.15955591]
[1767371072581,10.34178788,3106.0,3105.0,10.15955591]
[1767371072780,10.34178788,3106.0,3105.1,9.34776099]
[1767371073099,10.34178788,3106.0,3105.1,9.31555591]
[1767371073802,0.002,3106.1,3105.1,9.31555591]
[1767371074319,0.002,3106.1,3105.3,9.31555591]
[1767371075216,10.24744353,3106.6,3105.7,9.31555591]
[1767371075419,9.40344353,3106.6,3105.7,9.31555591]
[1767371075844,12.62243358,3106.6,3105.7,9.31555591]
[1767371076006,14.20676685,3106.6,3105.7,9.31555591]
[1767371076413,9.13393417,3106.5,3105.7,9.31555591]
[1767371077619,0.002,3106.1,3105.7,9.31555591]
[1767371078403,0.002,3106.1,3105.4,0.844]
[1767371078714,0.002,3106.1,3105.3,9.31555591]
[1767371078911,0.002,3106.1,3105.3,11.0911115]
[1767371080349,9.13858251,3106.1,3105.3,10.15955591]
[1767371080506,9.13858251,3106.1,3105.3,0.844]
[1767371080708,0.002,3106.1,3105.4,9.31555591]
[1767371081847,9.13393417,3106.3,3105.4,9.31555591]
[1767371081848,9.13854291,3106.3,3105.4,9.31555591]
[1767371082709,14.20675763,3106.6,3105.5,9.31555591]
[1767371082910,14.20675763,3106.6,3105.5,10.65353561]
[1767371083243,0.002,3106.8,3106.5,9.31555591]
[1767371083445,9.40144353,3107.5,3106.5,9.29567241]
[1767371083629,12.61950726,3107.5,3106.5,9.29567241]
[1767371083819,9.16153884,3107.3,3106.5,9.29567241]
[1767371084006,9.40144353,3107.6,3106.5,9.29567241]
[1767371084219,9.40144353,3108.0,3107.0,9.31555591]
[1767371084412,0.94014435,3107.9,3107.0,9.31555591]
[1767371084721,9.39906428,3107.8,3106.9,0.844]
[1767371084905,9.39906428,3107.8,3106.7,9.31555591]
[1767371085111,9.39906428,3107.8,3106.8,10.15955591]
[1767371085437,4.15779324,3107.9,3106.9,3.21864196]
[1767371085438,0.94014435,3107.9,3106.9,3.21864196]
[1767371085740,6.43490853,3108.1,3106.8,9.31555591]
[1767371085938,9.39070868,3108.0,3106.8,9.31555591]
[1767371086352,0.844,3108.2,3107.0,9.31555591]
[1767371086642,3.24159339,3108.1,3107.3,9.31555591]
[1767371086816,0.844,3108.2,3107.3,9.31555591]
[1767371087015,1.3451958,3108.1,3107.3,9.31555591]
[1767371087835,8.33193884,3108.6,3107.3,9.31555591]
[1767371088150,9.39072848,3108.5,3107.4,9.31555591]
[1767371088354,8.34054674,3108.3,3107.0,9.31555591]
[1767371088639,5.20993781,3108.4,3107.1,9.31555591]
[1767371088640,0.844,3108.2,3107.1,9.31555591]
[1767371088842,9.17393884,3108.4,3107.1,9.31555591]
[1767371089014,1.23909245,3108.3,3107.1,9.31555591]
[1767371090261,10.62982093,3108.3,3107.1,9.31555591]
[1767371090625,9.38022666,3108.1,3107.1,9.31555591]
[1767371090939,8.35094354,3107.9,3106.7,9.31555591]
[1767371091122,9.36993383,3107.7,3106.4,0.844]
[1767371091324,9.36993383,3107.7,3106.5,9.34774647]
[1767371091523,9.36993383,3107.7,3106.8,3.21869165]
[1767371091834,9.36993383,3107.7,3106.9,3.21863494]
[1767371092148,9.36993383,3107.7,3106.9,9.31555591]
[1767371092351,0.002,3108.6,3106.9,9.31555591]
[1767371092352,0.002,3108.6,3107.2,9.31555591]
[1767371092519,0.002,3108.6,3107.4,9.31555591]
[1767371093615,5.16874715,3108.6,3107.1,9.31555591]
[1767371093942,5.16874715,3108.6,3106.7,9.31555591]
[1767371094152,5.16874715,3108.6,3106.9,9.31555591]
[1767371094314,9.35885547,3108.4,3106.9,9.31555591]
[1767371094641,9.31711491,3108.0,3106.9,9.31555591]
[1767371095054,0.844,3107.9,3106.9,9.31555591]
[1767371095239,6.07012269,3107.9,3106.9,9.31555591]
[1767371096351,9.28269423,3107.8,3106.9,9.31555591]
[1767371096645,5.32341557,3107.5,3105.7,9.86688164]
[1767371096844,9.17988503,3107.3,3106.0,9.86688164]
[1767371097550,5.36198027,3107.2,3105.7,9.86688164]
[1767371098274,5.36198027,3107.2,3105.4,0.001]
[1767371098275,9.10428669,3106.7,3105.4,0.001]
[1767371098423,5.43583262,3106.5,3105.4,0.001]
[1767371098620,8.65496767,3106.5,3105.4,9.90008361]
[1767371098819,8.65496767,3106.5,3105.4,9.86788164]
[1767371098820,9.91160215,3106.4,3105.4,9.86788164]
[1767371100428,9.06760215,3106.4,3105.4,9.86788164]
[1767371100628,9.03164763,3106.1,3105.4,0.001]
[1767371101418,9.03164763,3106.1,3105.0,0.101]
[1767371101976,0.844,3106.0,3105.0,9.96788164]
[1767371102255,6.35075529,3106.0,3105.0,0.101]
[1767371102434,6.35075529,3106.0,3105.0,9.96788164]
[1767371102631,3.21978234,3105.8,3105.0,9.96788164]
[1767371102958,0.844,3105.7,3105.0,9.96788164]
[1767371103157,6.38564182,3105.7,3105.0,0.101]
[1767371103826,0.63507553,3105.9,3105.0,9.96788164]
[1767371104023,0.844,3105.9,3105.2,9.86688164]
[1767371104224,0.844,3106.2,3105.4,9.86688164]
[1767371104466,6.12509786,3106.2,3105.4,9.86688164]
[1767371104669,9.21880957,3106.0,3105.0,9.96788164]
[1767371104836,0.844,3106.2,3105.1,9.89908672]
[1767371105175,9.21880957,3106.1,3105.1,9.86688164]
[1767371105372,9.21880957,3106.1,3105.1,11.18574135]
[1767371105924,9.21880957,3106.1,3105.0,0.101]
[1767371106645,5.32047497,3105.9,3104.4,9.86788164]
[1767371107756,0.25952256,3105.8,3104.4,9.86788164]
[1767371107968,10.02382623,3105.7,3104.4,9.86788164]
[1767371108729,5.35906848,3105.5,3104.4,9.86788164]
[1767371108972,9.14161865,3105.3,3104.4,9.86788164]
[1767371109136,1.17990479,3105.4,3104.4,9.86788164]
[1767371109137,5.39689398,3105.1,3104.4,0.001]
[1767371109323,5.39689398,3105.1,3104.1,0.001]
[1767371109728,5.39689398,3105.1,3103.8,0.001]
[1767371109928,9.10417141,3104.9,3103.8,0.001]
[1767371110750,5.43297675,3104.7,3103.8,0.001]
[1767371110942,9.06745947,3104.5,3103.8,0.001]
[1767371112591,9.06745947,3104.5,3103.6,9.86688164]
[1767371112782,9.68075341,3104.4,3103.6,9.86688164]
[1767371112999,6.45947752,3104.4,3103.6,9.86688164]
[1767371113168,9.68073713,3104.4,3103.6,9.86688164]
[1767371113488,6.45947752,3104.4,3103.6,9.86688164]
[1767371113796,9.68072364,3104.4,3103.6,9.86688164]
[1767371114295,10.32165363,3104.3,3103.3,9.86788164]
[1767371114696,10.32165363,3104.3,3103.3,0.001]
[1767371115016,5.50396294,3104.1,3103.3,0.001]
[1767371115215,5.50396294,3104.1,3103.0,0.001]
[1767371115216,8.99520314,3103.9,3103.0,9.86788164]
[1767371115426,1.82792031,3103.8,3103.0,9.86788164]
[1767371115627,1.82792031,3103.8,3103.0,0.001]
[1767371115628,8.96063986,3103.7,3103.0,0.001]
[1767371116258,8.96063986,3103.7,3102.6,3.22307807]
[1767371116522,6.44288382,3104.2,3103.1,9.86688164]
[1767371116523,3.22144191,3104.2,3103.1,9.86688164]
[1767371116717,4.06544191,3104.2,3103.1,9.86688164]
[1767371116885,4.06544191,3104.2,3103.3,9.86688164]
[1767371117080,13.32402634,3104.2,3103.3,9.86688164]
[1767371117282,6.11170786,3104.1,3102.9,9.86688164]
[1767371117723,7.28688382,3104.2,3102.9,9.86688164]
[1767371117917,6.11170786,3104.1,3102.9,9.86688164]
[1767371118118,9.22711567,3103.9,3102.9,9.86688164]
[1767371118285,9.22711567,3103.9,3102.6,9.86688164]
[1767371118616,9.22711567,3103.9,3102.7,9.86688164]
[1767371118918,9.363729,3103.8,3102.7,9.86688164]
[1767371119122,0.844,3103.7,3102.7,9.86688164]
[1767371119326,0.844,3103.7,3102.7,11.17597749]
[1767371119534,10.04026324,3103.7,3102.7,9.86688164]
[1767371120439,10.04026324,3103.7,3102.5,0.001]
[1767371120914,9.16601487,3103.3,3102.1,9.86788164]
[1767371121114,0.844,3103.2,3102.2,9.89911682]
[1767371121415,9.16601487,3103.3,3102.2,9.86688164]
[1767371121621,9.16601487,3103.3,3102.3,10.8536698]
[1767371122118,9.16601487,3103.3,3102.1,0.001]
[1767371122487,6.20137173,3103.1,3101.9,0.001]
[1767371122690,9.13438844,3102.9,3101.7,0.001]
[1767371122892,6.23070189,3102.7,3101.7,0.001]
[1767371123097,6.23070189,3102.7,3101.6,9.86688164]
[1767371123423,9.25858443,3102.5,3101.3,9.86788164]
[1767371125036,6.60126286,3102.3,3101.3,9.86788164]
[1767371125327,7.47257034,3102.8,3101.9,9.86688164]
[1767371125503,7.47257034,3102.8,3101.8,0.001]
[1767371125698,7.47257034,3102.8,3101.8,9.86788164]
[1767371125699,6.62757034,3102.8,3101.8,9.86788164]
[1767371125899,7.61260653,3102.8,3101.8,9.86788164]
[1767371126096,7.61260653,3102.8,3101.9,9.58016904]
[1767371126330,7.61260653,3102.8,3101.9,9.54793074]
[1767371127093,0.98503619,3102.8,3102.1,9.83029115]
[1767371127315,14.09755598,3103.0,3102.1,9.83029115]
[1767371127523,10.02984803,3103.0,3102.1,9.83029115]
[1767371127735,7.65214008,3103.0,3102.1,9.83029115]
[1767371127892,10.87486577,3103.0,3102.1,9.83029115]
[1767371128399,9.05230257,3102.9,3101.8,0.001]
[1767371128698,6.82935061,3102.7,3101.8,0.001]
[1767371128890,1.6342754,3102.8,3101.8,9.83129115]
[1767371129090,2.4792754,3102.8,3102.0,9.83029115]
[1767371129294,1.6342754,3102.8,3102.0,9.83029115]
[1767371129497,0.845,3102.9,3102.0,9.83029115]
[1767371130296,10.87682335,3103.1,3102.0,9.83029115]
[1767371130834,14.09950662,3103.1,3102.0,9.83029115]
[1767371131017,10.87682335,3103.1,3102.0,9.83029115]
[1767371131422,0.845,3103.0,3102.0,9.83029115]
[1767371131731,2.25493039,3103.0,3102.0,9.83029115]
[1767371132297,0.002,3103.1,3102.0,9.83029115]
[1767371132494,0.002,3103.1,3102.2,9.83029115]
[1767371132697,0.002,3103.1,3102.4,9.83029115]
[1767371132899,3.22460425,3103.1,3102.4,9.83029115]
[1767371133212,0.32246043,3103.0,3102.0,9.83029115]
[1767371133538,0.0241098,3102.9,3102.0,9.83029115]
[1767371133719,7.15181104,3103.0,3102.1,9.83029115]
[1767371133908,6.82935061,3103.0,3102.1,9.83029115]
[1767371134108,0.845,3103.5,3102.7,9.83029115]
[1767371134423,7.67380378,3103.5,3102.7,9.81040863]
[1767371134600,10.89599311,3103.5,3102.7,9.81040863]
[1767371134803,10.11800871,3103.4,3102.3,9.83029115]
[1767371135203,6.85079984,3103.2,3102.1,9.83029115]
[1767371136426,9.0066333,3103.1,3102.1,9.83029115]
[1767371137140,9.0066333,3103.1,3102.2,3.22351879]
[1767371137309,9.0066333,3103.1,3102.3,9.83029115]
[1767371137509,6.82880378,3103.4,3102.4,11.45802402]
[1767371137814,6.82880378,3103.4,3102.4,1.62773287]
[1767371138015,6.82880378,3103.4,3102.2,13.05380994]
[1767371138333,6.82880378,3103.4,3102.3,9.83029115]
[1767371138534,9.0284094,3103.2,3101.9,0.845]
[1767371138735,9.0284094,3103.2,3102.0,13.05395916]
[1767371138931,9.93125034,3103.2,3102.1,1.38989592]
[1767371139144,6.85079984,3103.0,3102.0,9.83029115]
[1767371139358,9.0066333,3102.8,3101.3,9.83129115]
[1767371139650,6.87136818,3102.6,3101.3,9.83129115]
[1767371139811,7.71636818,3102.6,3101.3,9.83129115]
[1767371140013,0.845,3102.6,3101.5,9.83029115]
[1767371140339,0.845,3102.6,3101.3,0.001]
[1767371140340,0.845,3102.6,3101.6,9.83029115]
[1767371140711,9.8733995,3102.6,3101.6,9.83029115]